[Event "Early-Titled-Tuesday-Blitz-May-28-2024"]
[Site "Chess.com"]
[Date "2024.05.28"]
[Round "5"]
[White "Rsnr"]
[Black "FairChess_on_YouTube"]
[Result "0-1"]
[WhiteElo "2910"]
[BlackElo "3090"]
[TimeControl "180+1"]
[EndTime "8:56:42 PDT"]
[Termination "FairChess_on_YouTube won by resignation"]

1. d4 {[%clk 0:03:00.9]} 1... Nf6 {[%clk 0:02:59.2]} 2. c4 {[%clk 0:03:01.1]}
2... e6 {[%clk 0:02:58.3]} 3. Nf3 {[%clk 0:03:01]} 3... a6 {[%clk 0:02:57.2]} 4.
Nc3 {[%clk 0:03:00.6]} 4... d5 {[%clk 0:02:55]} 5. cxd5 {[%clk 0:03:01.5]} 5...
exd5 {[%clk 0:02:55.6]} 6. Bg5 {[%clk 0:03:01.6]} 6... Be6 {[%clk 0:02:54.6]} 7.
Bxf6 {[%clk 0:03:01.8]} 7... Qxf6 {[%clk 0:02:53.9]} 8. Qb3 {[%clk 0:03:02.4]}
8... Ra7 {[%clk 0:02:53.8]} 9. g3 {[%clk 0:03:02.6]} 9... Qd8 {[%clk 0:02:53.2]}
10. h4 {[%clk 0:03:02.5]} 10... Be7 {[%clk 0:02:52.9]} 11. Ng5 {[%clk
0:03:02.8]} 11... Bxg5 {[%clk 0:02:38.3]} 12. hxg5 {[%clk 0:03:03.7]} 12... Qxg5
{[%clk 0:02:35.9]} 13. Bg2 {[%clk 0:03:04]} 13... Nc6 {[%clk 0:02:30.5]} 14.
Nxd5 {[%clk 0:02:50.9]} 14... O-O {[%clk 0:02:24.6]} 15. Qd3 {[%clk 0:02:45.7]}
15... g6 {[%clk 0:02:10.1]} 16. Nf4 {[%clk 0:02:32.8]} 16... Bd7 {[%clk
0:01:57.3]} 17. Qc3 {[%clk 0:02:23.7]} 17... Qa5 {[%clk 0:01:33.9]} 18. Qxa5
{[%clk 0:02:08.5]} 18... Nxa5 {[%clk 0:01:34.8]} 19. Nd5 {[%clk 0:02:09]} 19...
Kg7 {[%clk 0:01:30.5]} 20. O-O {[%clk 0:01:16.1]} 20... Bc6 {[%clk 0:01:20.8]}
21. Nc3 {[%clk 0:00:57.7]} 21... Bxg2 {[%clk 0:01:19.1]} 22. Kxg2 {[%clk
0:00:58.6]} 22... Nc4 {[%clk 0:01:18.1]} 23. b3 {[%clk 0:00:55.3]} 23... Nd6
{[%clk 0:01:14.3]} 24. Rac1 {[%clk 0:00:55]} 24... Raa8 {[%clk 0:01:11.8]} 25.
e3 {[%clk 0:00:44.3]} 25... c6 {[%clk 0:01:10.4]} 26. Na4 {[%clk 0:00:44.7]}
26... Rad8 {[%clk 0:01:10]} 27. Nc5 {[%clk 0:00:45.1]} 27... Rfe8 {[%clk
0:01:10.3]} 28. Rfd1 {[%clk 0:00:45.3]} 28... h5 {[%clk 0:01:08.8]} 29. a4
{[%clk 0:00:44.7]} 29... Re7 {[%clk 0:01:05]} 30. Nd3 {[%clk 0:00:35.1]} 30...
Ne4 {[%clk 0:01:03.7]} 31. Nc5 {[%clk 0:00:33.8]} 31... Nf6 {[%clk 0:00:59.1]}
32. b4 {[%clk 0:00:22.4]} 32... Rh8 {[%clk 0:00:57]} 33. Rb1 {[%clk 0:00:15.2]}
33... h4 {[%clk 0:00:50.1]} 34. gxh4 {[%clk 0:00:14.1]} 34... Rxh4 {[%clk
0:00:51]} 35. Rh1 {[%clk 0:00:14.6]} 35... Rg4+ {[%clk 0:00:51]} 36. Kf3 {[%clk
0:00:14.6]} 36... Rg5 {[%clk 0:00:51.5]} 37. Ke2 {[%clk 0:00:11.4]} 37... Nd5
{[%clk 0:00:50.2]} 38. Kd3 {[%clk 0:00:04]} 38... Rg2 {[%clk 0:00:49.9]} 39.
Rhf1 {[%clk 0:00:04.4]} 39... Nf6 {[%clk 0:00:41.2]} 40. b5 {[%clk 0:00:04.7]}
40... cxb5 {[%clk 0:00:40.9]} 41. axb5 {[%clk 0:00:05.6]} 41... Ng4 {[%clk
0:00:41.1]} 42. Rb2 {[%clk 0:00:03.4]} 42... axb5 {[%clk 0:00:40.6]} 43. Re2
{[%clk 0:00:02.7]} 43... f5 {[%clk 0:00:37.4]} 44. e4 {[%clk 0:00:02.7]} 44...
b6 {[%clk 0:00:35.6]} 45. Nb3 {[%clk 0:00:01.8]} 45... fxe4+ {[%clk 0:00:35.9]}
46. Kd2 {[%clk 0:00:02]} 46... Nxf2 {[%clk 0:00:32.8]} 47. Ke3 {[%clk 0:00:01]}
47... Ng4+ {[%clk 0:00:32.6]} 48. Kd2 {[%clk 0:00:01.8]} 48... e3+ {[%clk
0:00:33.1]} 49. Kd3 {[%clk 0:00:02.4]} 49... Nf2+ {[%clk 0:00:33.4]} 50. Kc3
{[%clk 0:00:03]} 50... Ne4+ {[%clk 0:00:33.8]} 51. Kd3 {[%clk 0:00:03.5]} 51...
Rxe2 {[%clk 0:00:34.4]} 0-1

[Event "Early-Titled-Tuesday-Blitz-May-28-2024"]
[Site "Chess.com"]
[Date "2024.05.28"]
[Round "5"]
[White "Navyblue1"]
[Black "Qvalda"]
[Result "1-0"]
[WhiteElo "2257"]
[BlackElo "2394"]
[TimeControl "180+1"]
[EndTime "8:56:42 PDT"]
[Termination "Navyblue1 won on time"]

1. d4 {[%clk 0:02:59.2]} 1... d5 {[%clk 0:02:59.2]} 2. c4 {[%clk 0:02:57.7]}
2... e6 {[%clk 0:02:59.5]} 3. Nc3 {[%clk 0:02:55.5]} 3... Nf6 {[%clk 0:02:59.4]}
4. cxd5 {[%clk 0:02:52.9]} 4... exd5 {[%clk 0:03:00.3]} 5. Nf3 {[%clk
0:02:52.3]} 5... c6 {[%clk 0:02:58.4]} 6. Bg5 {[%clk 0:02:51.5]} 6... Be7 {[%clk
0:02:51.6]} 7. e3 {[%clk 0:02:51.2]} 7... Bf5 {[%clk 0:02:51.8]} 8. h3 {[%clk
0:02:48.5]} 8... Nbd7 {[%clk 0:02:48.9]} 9. Bd3 {[%clk 0:02:44.8]} 9... Bxd3
{[%clk 0:02:48.7]} 10. Qxd3 {[%clk 0:02:45.7]} 10... O-O {[%clk 0:02:48.1]} 11.
O-O {[%clk 0:02:44.9]} 11... Re8 {[%clk 0:02:45.1]} 12. Nd2 {[%clk 0:02:43.4]}
12... h6 {[%clk 0:02:43.1]} 13. Bh4 {[%clk 0:02:43.3]} 13... Ne4 {[%clk
0:01:58.9]} 14. Bxe7 {[%clk 0:02:37]} 14... Qxe7 {[%clk 0:01:59.8]} 15. Rae1
{[%clk 0:02:34.6]} 15... f5 {[%clk 0:01:52.1]} 16. f3 {[%clk 0:02:21.2]} 16...
Ng3 {[%clk 0:01:13.2]} 17. Rf2 {[%clk 0:02:17.6]} 17... Qh4 {[%clk 0:01:13.1]}
18. Nf1 {[%clk 0:02:05.7]} 18... Nxf1 {[%clk 0:00:56.2]} 19. Rexf1 {[%clk
0:01:58.8]} 19... Qg5 {[%clk 0:00:48.2]} 20. f4 {[%clk 0:01:52.3]} 20... Qh5
{[%clk 0:00:38.8]} 21. Ne2 {[%clk 0:01:47]} 21... Rf8 {[%clk 0:00:23.9]} 22. Kh2
{[%clk 0:01:20.8]} 22... Rae8 {[%clk 0:00:22.7]} 23. Ng1 {[%clk 0:01:18.8]}
23... Nf6 {[%clk 0:00:18.7]} 24. Nf3 {[%clk 0:01:18.4]} 24... Ng4+ {[%clk
0:00:18.6]} 25. Kg1 {[%clk 0:01:15]} 25... Nxf2 {[%clk 0:00:17.1]} 26. Rxf2
{[%clk 0:01:14.7]} 26... Re4 {[%clk 0:00:12]} 27. Ne5 {[%clk 0:01:14.4]} 27...
Qh4 {[%clk 0:00:10.5]} 28. Qd2 {[%clk 0:01:08.6]} 28... Qg3 {[%clk 0:00:09.5]}
29. Rf3 {[%clk 0:01:08.3]} 29... Qh4 {[%clk 0:00:09.6]} 30. a3 {[%clk
0:01:06.5]} 30... Re8 {[%clk 0:00:09.8]} 31. b4 {[%clk 0:01:05.7]} 31... a6
{[%clk 0:00:09.1]} 32. Qc1 {[%clk 0:00:59.7]} 32... Qe7 {[%clk 0:00:08.5]} 33.
Qe1 {[%clk 0:00:53.8]} 33... Ra8 {[%clk 0:00:08]} 34. Rg3 {[%clk 0:00:41.4]}
34... a5 {[%clk 0:00:07]} 35. bxa5 {[%clk 0:00:40.5]} 35... Qxa3 {[%clk
0:00:07.7]} 36. Kh2 {[%clk 0:00:32.8]} 36... Qxa5 {[%clk 0:00:07.1]} 37. Qf2
{[%clk 0:00:31.5]} 37... Qa3 {[%clk 0:00:05.4]} 38. Qf3 {[%clk 0:00:31.1]} 38...
Qe7 {[%clk 0:00:04.6]} 39. Qh5 {[%clk 0:00:30.5]} 39... Qf6 {[%clk 0:00:04.8]}
40. Rg6 {[%clk 0:00:29.5]} 40... Qf8 {[%clk 0:00:04.2]} 41. Qxh6 {[%clk
0:00:20.6]} 41... Rxe3 {[%clk 0:00:03.6]} 42. Rg5 {[%clk 0:00:18.8]} 42... Re8
{[%clk 0:00:02.3]} 43. Qh5 {[%clk 0:00:16.2]} 43... c5 {[%clk 0:00:01.8]} 44.
Ng6 {[%clk 0:00:16.1]} 44... Qd6 {[%clk 0:00:01]} 45. Ne5 {[%clk 0:00:14.2]} 1-0

[Event "Early-Titled-Tuesday-Blitz-May-28-2024"]
[Site "Chess.com"]
[Date "2024.05.28"]
[Round "5"]
[White "HouseOfDurin"]
[Black "Shivananda1964"]
[Result "1/2-1/2"]
[WhiteElo "2249"]
[BlackElo "2405"]
[TimeControl "180+1"]
[EndTime "8:56:43 PDT"]
[Termination "Game drawn - timeout vs insufficient material"]

1. d4 {[%clk 0:03:00.9]} 1... Nf6 {[%clk 0:02:58.3]} 2. Bg5 {[%clk 0:03:01.3]}
2... e6 {[%clk 0:02:54.2]} 3. e4 {[%clk 0:03:00.7]} 3... c5 {[%clk 0:02:49.1]}
4. Bxf6 {[%clk 0:02:55.5]} 4... Qxf6 {[%clk 0:02:45.2]} 5. c3 {[%clk 0:02:55.5]}
5... cxd4 {[%clk 0:02:40.8]} 6. cxd4 {[%clk 0:02:56.4]} 6... Nc6 {[%clk
0:02:40.7]} 7. Nf3 {[%clk 0:02:55.9]} 7... Bb4+ {[%clk 0:02:38.9]} 8. Nc3 {[%clk
0:02:55.6]} 8... O-O {[%clk 0:02:32.3]} 9. Be2 {[%clk 0:02:54.5]} 9... d6 {[%clk
0:02:31.6]} 10. O-O {[%clk 0:02:53.6]} 10... Bxc3 {[%clk 0:02:24.8]} 11. bxc3
{[%clk 0:02:53.6]} 11... e5 {[%clk 0:02:25.5]} 12. d5 {[%clk 0:02:50]} 12... Na5
{[%clk 0:02:22.9]} 13. Qa4 {[%clk 0:02:45.2]} 13... b6 {[%clk 0:02:21.9]} 14. h3
{[%clk 0:02:39.6]} 14... Qg6 {[%clk 0:02:10.3]} 15. Kh1 {[%clk 0:02:37.1]} 15...
Qh6 {[%clk 0:01:50.7]} 16. Kh2 {[%clk 0:02:30.6]} 16... f5 {[%clk 0:01:48.4]}
17. exf5 {[%clk 0:02:00]} 17... Rxf5 {[%clk 0:01:36.2]} 18. Qh4 {[%clk
0:02:00.1]} 18... Qxh4 {[%clk 0:00:50]} 19. Nxh4 {[%clk 0:02:01]} 19... Rf4
{[%clk 0:00:36.6]} 20. g3 {[%clk 0:02:00.5]} 20... Rf8 {[%clk 0:00:23.6]} 21. f4
{[%clk 0:01:41.7]} 21... exf4 {[%clk 0:00:22.6]} 22. Rxf4 {[%clk 0:01:42.4]}
22... Rxf4 {[%clk 0:00:22.2]} 23. gxf4 {[%clk 0:01:43.3]} 23... Bd7 {[%clk
0:00:19.8]} 24. Bg4 {[%clk 0:01:34]} 24... Bxg4 {[%clk 0:00:17.4]} 25. hxg4
{[%clk 0:01:34.9]} 25... g6 {[%clk 0:00:16.8]} 26. Re1 {[%clk 0:01:29]} 26...
Rc8 {[%clk 0:00:10.2]} 27. Re3 {[%clk 0:01:18.7]} 27... Kf8 {[%clk 0:00:07.1]}
28. f5 {[%clk 0:01:16.7]} 28... Re8 {[%clk 0:00:02.4]} 29. Rxe8+ {[%clk
0:01:15.5]} 29... Kxe8 {[%clk 0:00:03]} 30. fxg6 {[%clk 0:01:16.4]} 30... hxg6
{[%clk 0:00:03.4]} 31. Nxg6 {[%clk 0:01:16.9]} 31... Nc4 {[%clk 0:00:03.7]} 32.
Nf4 {[%clk 0:01:12.5]} 32... Ne3 {[%clk 0:00:03.2]} 33. Kg3 {[%clk 0:01:10.7]}
33... Nd1 {[%clk 0:00:03.9]} 34. c4 {[%clk 0:01:09.1]} 34... Ne3 {[%clk
0:00:04]} 35. g5 {[%clk 0:01:01.6]} 35... Nxc4 {[%clk 0:00:04.1]} 36. Kg4 {[%clk
0:01:01.7]} 36... Ne3+ {[%clk 0:00:03.9]} 37. Kh5 {[%clk 0:01:02.2]} 37... Kf7
{[%clk 0:00:03.4]} 38. g6+ {[%clk 0:01:01.7]} 38... Kf6 {[%clk 0:00:03.6]} 39.
Kh6 {[%clk 0:01:01.2]} 39... Nf5+ {[%clk 0:00:03.4]} 40. Kh7 {[%clk 0:01:01.6]}
40... b5 {[%clk 0:00:03.5]} 41. Nh5+ {[%clk 0:01:02]} 41... Ke5 {[%clk
0:00:03.6]} 42. g7 {[%clk 0:01:02.1]} 42... Nxg7 {[%clk 0:00:03.9]} 43. Nxg7
{[%clk 0:01:02.7]} 43... Kxd5 {[%clk 0:00:03.8]} 44. Ne8 {[%clk 0:01:02.6]}
44... Kc5 {[%clk 0:00:03.7]} 45. Nc7 {[%clk 0:01:02.9]} 45... b4 {[%clk
0:00:03.5]} 46. Na6+ {[%clk 0:01:02.6]} 46... Kc4 {[%clk 0:00:03.7]} 47. Kg6
{[%clk 0:01:02.7]} 47... d5 {[%clk 0:00:04.1]} 48. Kf5 {[%clk 0:01:03]} 48... d4
{[%clk 0:00:04.6]} 49. Ke4 {[%clk 0:01:03.6]} 49... d3 {[%clk 0:00:04.6]} 50.
Ke3 {[%clk 0:01:03.2]} 50... Kc3 {[%clk 0:00:05.1]} 51. Nc5 {[%clk 0:00:56.4]}
51... d2 {[%clk 0:00:04.2]} 52. Ne4+ {[%clk 0:00:56]} 52... Kb2 {[%clk
0:00:04.9]} 53. Kxd2 {[%clk 0:00:54.3]} 53... Kxa2 {[%clk 0:00:05.5]} 54. Kc1
{[%clk 0:00:51.6]} 54... a5 {[%clk 0:00:05]} 55. Nc5 {[%clk 0:00:43.7]} 55... b3
{[%clk 0:00:04.2]} 56. Nxb3 {[%clk 0:00:43.4]} 56... Kxb3 {[%clk 0:00:03.2]} 57.
Kb1 {[%clk 0:00:44.3]} 1/2-1/2

[Event "Early-Titled-Tuesday-Blitz-May-28-2024"]
[Site "Chess.com"]
[Date "2024.05.28"]
[Round "5"]
[White "subham777"]
[Black "Rdeux42"]
[Result "0-1"]
[WhiteElo "2553"]
[BlackElo "2437"]
[TimeControl "180+1"]
[EndTime "8:56:45 PDT"]
[Termination "Rdeux42 won on time"]

1. e4 {[%clk 0:03:00.9]} 1... c5 {[%clk 0:02:59.9]} 2. Nf3 {[%clk 0:02:58]} 2...
d6 {[%clk 0:02:59.4]} 3. d4 {[%clk 0:02:45.8]} 3... cxd4 {[%clk 0:03:00.3]} 4.
Qxd4 {[%clk 0:02:43.5]} 4... Nf6 {[%clk 0:03:01.2]} 5. e5 {[%clk 0:02:43.3]}
5... Nc6 {[%clk 0:03:00.7]} 6. Bb5 {[%clk 0:02:42.5]} 6... Qa5+ {[%clk
0:03:00.9]} 7. Nc3 {[%clk 0:02:41.3]} 7... Qxb5 {[%clk 0:03:01.1]} 8. Nxb5
{[%clk 0:02:42.2]} 8... Nxd4 {[%clk 0:03:01.1]} 9. Nbxd4 {[%clk 0:02:43.1]} 9...
dxe5 {[%clk 0:03:01]} 10. Nxe5 {[%clk 0:02:44]} 10... a6 {[%clk 0:02:58.8]} 11.
Be3 {[%clk 0:02:40.3]} 11... Nd7 {[%clk 0:02:59.3]} 12. Nc4 {[%clk 0:02:34.6]}
12... b5 {[%clk 0:02:55]} 13. Na5 {[%clk 0:02:34.4]} 13... e6 {[%clk 0:02:44.5]}
14. O-O-O {[%clk 0:02:32]} 14... Bc5 {[%clk 0:02:41.4]} 15. Ndc6 {[%clk
0:02:18.8]} 15... Bxe3+ {[%clk 0:02:34.2]} 16. fxe3 {[%clk 0:02:19.7]} 16... f6
{[%clk 0:02:23.8]} 17. Rd6 {[%clk 0:02:16.8]} 17... Kf7 {[%clk 0:02:22]} 18.
Rhd1 {[%clk 0:02:11.3]} 18... Nb8 {[%clk 0:02:10.3]} 19. Nxb8 {[%clk 0:01:25.1]}
19... Rxb8 {[%clk 0:02:11.2]} 20. Nc6 {[%clk 0:01:25.3]} 20... Ra8 {[%clk
0:01:55.7]} 21. Nd8+ {[%clk 0:01:06.5]} 21... Ke7 {[%clk 0:01:50.1]} 22. Nc6+
{[%clk 0:01:04.7]} 22... Kf7 {[%clk 0:01:49.5]} 23. b4 {[%clk 0:00:55.9]} 23...
e5 {[%clk 0:01:33.8]} 24. Kb2 {[%clk 0:00:51.3]} 24... Bg4 {[%clk 0:01:32.7]}
25. R1d2 {[%clk 0:00:49.4]} 25... Rhc8 {[%clk 0:01:26.1]} 26. h3 {[%clk
0:00:49.2]} 26... Bf5 {[%clk 0:01:19.8]} 27. g4 {[%clk 0:00:47.7]} 27... Be4
{[%clk 0:01:20.4]} 28. Rd7+ {[%clk 0:00:34.2]} 28... Kf8 {[%clk 0:01:11.1]} 29.
Nd8 {[%clk 0:00:21.6]} 29... Rc4 {[%clk 0:00:40.8]} 30. Ne6+ {[%clk 0:00:15.5]}
30... Kg8 {[%clk 0:00:41.2]} 31. Rxg7+ {[%clk 0:00:13.9]} 31... Kh8 {[%clk
0:00:41.8]} 32. c3 {[%clk 0:00:08.4]} 32... Rac8 {[%clk 0:00:41.5]} 33. Rf7
{[%clk 0:00:03.8]} 33... Rxc3 {[%clk 0:00:37.4]} 34. Nc5 {[%clk 0:00:04.3]}
34... Rc4 {[%clk 0:00:30.9]} 35. Nxe4 {[%clk 0:00:02.5]} 35... Rxb4+ {[%clk
0:00:30.2]} 36. Ka3 {[%clk 0:00:02.9]} 36... Rxe4 {[%clk 0:00:26.3]} 37. Rdd7
{[%clk 0:00:02.6]} 37... Rxe3+ {[%clk 0:00:23.7]} 38. Kb4 {[%clk 0:00:01.9]}
38... Rxh3 {[%clk 0:00:22.6]} 39. Rxf6 {[%clk 0:00:01.9]} 39... e4 {[%clk
0:00:19.1]} 40. Rxa6 {[%clk 0:00:01]} 40... e3 {[%clk 0:00:18.4]} 41. Kxb5
{[%clk 0:00:01.9]} 41... Re8 {[%clk 0:00:17]} 42. Re6 {[%clk 0:00:02.8]} 42...
Rxe6 {[%clk 0:00:16.8]} 43. Rd1 {[%clk 0:00:02.8]} 43... e2 {[%clk 0:00:17.1]}
44. Re1 {[%clk 0:00:03.7]} 44... Rd3 {[%clk 0:00:16.9]} 45. a4 {[%clk
0:00:04.4]} 45... Rd1 {[%clk 0:00:17.5]} 46. Rxe2 {[%clk 0:00:04.7]} 46... Rxe2
{[%clk 0:00:17.5]} 47. a5 {[%clk 0:00:05.6]} 47... Rc2 {[%clk 0:00:18.1]} 48. a6
{[%clk 0:00:05.6]} 48... Rb1+ {[%clk 0:00:19]} 0-1

[Event "Early-Titled-Tuesday-Blitz-May-28-2024"]
[Site "Chess.com"]
[Date "2024.05.28"]
[Round "5"]
[White "unbreakablepawn35"]
[Black "aljado"]
[Result "1-0"]
[WhiteElo "2387"]
[BlackElo "2160"]
[TimeControl "180+1"]
[EndTime "8:56:45 PDT"]
[Termination "unbreakablepawn35 won on time"]

1. c4 {[%clk 0:03:00.9]} 1... e5 {[%clk 0:02:57.9]} 2. Nc3 {[%clk 0:03:01.3]}
2... Nf6 {[%clk 0:02:57.8]} 3. Nf3 {[%clk 0:03:01.2]} 3... Nc6 {[%clk
0:02:57.7]} 4. e3 {[%clk 0:03:01.6]} 4... d5 {[%clk 0:02:57.1]} 5. cxd5 {[%clk
0:03:00.9]} 5... Nxd5 {[%clk 0:02:57.2]} 6. Bb5 {[%clk 0:03:01.3]} 6... f6
{[%clk 0:02:50.7]} 7. O-O {[%clk 0:02:57.9]} 7... Be7 {[%clk 0:02:47]} 8. d4
{[%clk 0:02:47.4]} 8... Nxc3 {[%clk 0:02:42.1]} 9. bxc3 {[%clk 0:02:45.4]} 9...
exd4 {[%clk 0:02:38.6]} 10. cxd4 {[%clk 0:02:44.2]} 10... O-O {[%clk 0:02:32]}
11. Bd2 {[%clk 0:02:24.8]} 11... Bg4 {[%clk 0:02:29.7]} 12. h3 {[%clk
0:02:22.5]} 12... Bh5 {[%clk 0:02:28.4]} 13. Bc3 {[%clk 0:02:02.7]} 13... Kh8
{[%clk 0:02:26.2]} 14. Be2 {[%clk 0:02:02.3]} 14... Qd7 {[%clk 0:02:17.3]} 15.
Rb1 {[%clk 0:02:00.6]} 15... Rab8 {[%clk 0:02:12.8]} 16. Qa4 {[%clk 0:01:50.2]}
16... Rfd8 {[%clk 0:02:06.3]} 17. Rfd1 {[%clk 0:01:48.9]} 17... Bg6 {[%clk
0:01:56.2]} 18. Rb2 {[%clk 0:01:41.5]} 18... a6 {[%clk 0:01:44.2]} 19. d5 {[%clk
0:01:24.7]} 19... Na7 {[%clk 0:01:29.5]} 20. Qxd7 {[%clk 0:01:22.1]} 20... Rxd7
{[%clk 0:01:28.8]} 21. Bxa6 {[%clk 0:01:19.6]} 21... Be4 {[%clk 0:01:06.7]} 22.
Bc4 {[%clk 0:00:53.2]} 22... b5 {[%clk 0:00:57.3]} 23. Bb3 {[%clk 0:00:47.1]}
23... Ba3 {[%clk 0:00:55.6]} 24. Rbd2 {[%clk 0:00:45.7]} 24... Nc8 {[%clk
0:00:43.5]} 25. Nh4 {[%clk 0:00:32.6]} 25... Nd6 {[%clk 0:00:39.1]} 26. f3
{[%clk 0:00:31.6]} 26... Bf5 {[%clk 0:00:28.5]} 27. Nxf5 {[%clk 0:00:29.9]}
27... Nxf5 {[%clk 0:00:26.9]} 28. e4 {[%clk 0:00:29.9]} 28... Ne3 {[%clk
0:00:17]} 29. Re1 {[%clk 0:00:30]} 29... Nc4 {[%clk 0:00:16.6]} 30. Bxc4 {[%clk
0:00:23.9]} 30... bxc4 {[%clk 0:00:16.6]} 31. Kh1 {[%clk 0:00:20.9]} 31... Bb4
{[%clk 0:00:14.4]} 32. Rc1 {[%clk 0:00:19.4]} 32... Bxc3 {[%clk 0:00:13.3]} 33.
Rxc3 {[%clk 0:00:20.3]} 33... c6 {[%clk 0:00:11.5]} 34. d6 {[%clk 0:00:19.5]}
34... Rb4 {[%clk 0:00:08.9]} 35. Rd4 {[%clk 0:00:18.6]} 35... Ra4 {[%clk
0:00:08.2]} 36. Rcxc4 {[%clk 0:00:16.2]} 36... Rxc4 {[%clk 0:00:07.9]} 37. Rxc4
{[%clk 0:00:16.9]} 37... Rxd6 {[%clk 0:00:08]} 38. Kg1 {[%clk 0:00:16.5]} 38...
Kg8 {[%clk 0:00:08.2]} 39. Kf2 {[%clk 0:00:16.8]} 39... Kf7 {[%clk 0:00:08.7]}
40. Ke3 {[%clk 0:00:17.3]} 40... Ke6 {[%clk 0:00:08.3]} 41. g4 {[%clk
0:00:17.7]} 41... Ke5 {[%clk 0:00:07.8]} 42. f4+ {[%clk 0:00:17.9]} 42... Ke6
{[%clk 0:00:07.5]} 43. a4 {[%clk 0:00:18.5]} 43... g5 {[%clk 0:00:04.4]} 44. f5+
{[%clk 0:00:18.1]} 44... Ke7 {[%clk 0:00:02.6]} 45. Rd4 {[%clk 0:00:16.7]} 1-0

[Event "Early-Titled-Tuesday-Blitz-May-28-2024"]
[Site "Chess.com"]
[Date "2024.05.28"]
[Round "5"]
[White "ozates"]
[Black "Giantgoogachess"]
[Result "1/2-1/2"]
[WhiteElo "2641"]
[BlackElo "2369"]
[TimeControl "180+1"]
[EndTime "8:56:47 PDT"]
[Termination "Game drawn by repetition"]

1. e4 {[%clk 0:02:48.5]} 1... c5 {[%clk 0:02:59.8]} 2. Nc3 {[%clk 0:02:38.3]}
2... e6 {[%clk 0:02:59.4]} 3. Nf3 {[%clk 0:02:37.4]} 3... a6 {[%clk 0:02:57.2]}
4. d4 {[%clk 0:02:37.2]} 4... cxd4 {[%clk 0:02:56.5]} 5. Nxd4 {[%clk 0:02:38.1]}
5... b5 {[%clk 0:02:56]} 6. g3 {[%clk 0:02:38.6]} 6... Bb7 {[%clk 0:02:55.7]} 7.
Bg2 {[%clk 0:02:39.2]} 7... Nf6 {[%clk 0:02:55.2]} 8. O-O {[%clk 0:02:38.8]}
8... b4 {[%clk 0:02:55.1]} 9. Na4 {[%clk 0:02:38.8]} 9... Bxe4 {[%clk
0:02:54.6]} 10. Bxe4 {[%clk 0:02:39.1]} 10... Nxe4 {[%clk 0:02:53.8]} 11. Re1
{[%clk 0:02:39.8]} 11... Nc5 {[%clk 0:02:42.7]} 12. c3 {[%clk 0:02:31.7]} 12...
Nxa4 {[%clk 0:02:41.6]} 13. Qxa4 {[%clk 0:02:30.2]} 13... Qb6 {[%clk 0:02:41.1]}
14. Be3 {[%clk 0:02:26.8]} 14... Qb7 {[%clk 0:02:38.2]} 15. Rac1 {[%clk
0:02:14.3]} 15... h5 {[%clk 0:02:03.7]} 16. Bf4 {[%clk 0:02:00.8]} 16... Nc6
{[%clk 0:01:50.1]} 17. Nxc6 {[%clk 0:01:50.5]} 17... Qxc6 {[%clk 0:01:46.8]} 18.
Qxc6 {[%clk 0:01:38.6]} 18... dxc6 {[%clk 0:01:45.8]} 19. cxb4 {[%clk
0:01:39.5]} 19... Bxb4 {[%clk 0:01:46]} 20. Re4 {[%clk 0:01:39.3]} 20... a5
{[%clk 0:01:33.9]} 21. Rxc6 {[%clk 0:01:36.8]} 21... O-O {[%clk 0:01:34.3]} 22.
h4 {[%clk 0:01:23]} 22... Rfc8 {[%clk 0:01:11]} 23. Rec4 {[%clk 0:01:11.6]}
23... Rxc6 {[%clk 0:01:09.2]} 24. Rxc6 {[%clk 0:01:12.5]} 24... a4 {[%clk
0:01:05.3]} 25. Rb6 {[%clk 0:01:04.4]} 25... Be7 {[%clk 0:01:04.5]} 26. Rb8+
{[%clk 0:01:04.1]} 26... Rxb8 {[%clk 0:01:03.8]} 27. Bxb8 {[%clk 0:01:05]} 27...
Kf8 {[%clk 0:00:59.7]} 28. b3 {[%clk 0:01:04.9]} 28... axb3 {[%clk 0:01:00.2]}
29. axb3 {[%clk 0:01:05.8]} 29... Ke8 {[%clk 0:01:00.7]} 30. Kf1 {[%clk
0:01:06.4]} 30... Kd7 {[%clk 0:01:01]} 31. Ke2 {[%clk 0:01:07.1]} 31... Kc6
{[%clk 0:01:01.6]} 32. Kd3 {[%clk 0:01:07.7]} 32... Kb5 {[%clk 0:01:01.5]} 33.
Be5 {[%clk 0:01:06.1]} 33... f6 {[%clk 0:00:58.3]} 34. Bc3 {[%clk 0:01:05.9]}
34... g6 {[%clk 0:00:48.6]} 35. Ke4 {[%clk 0:00:54.2]} 35... Kc6 {[%clk
0:00:44.8]} 36. Kd3 {[%clk 0:00:45.8]} 36... Kd5 {[%clk 0:00:39.2]} 37. Bd2
{[%clk 0:00:41.8]} 37... e5 {[%clk 0:00:36.5]} 38. f3 {[%clk 0:00:42.2]} 38...
f5 {[%clk 0:00:36.4]} 39. Bc3 {[%clk 0:00:32.3]} 39... Bd6 {[%clk 0:00:34.9]}
40. Ke3 {[%clk 0:00:30]} 40... e4 {[%clk 0:00:30.5]} 41. fxe4+ {[%clk
0:00:28.6]} 41... fxe4 {[%clk 0:00:31]} 42. Be1 {[%clk 0:00:29.2]} 42... Ke5
{[%clk 0:00:20]} 43. b4 {[%clk 0:00:26.5]} 43... Kd5 {[%clk 0:00:20.3]} 44. b5
{[%clk 0:00:21.7]} 44... Bc7 {[%clk 0:00:18.1]} 45. Ke2 {[%clk 0:00:13.3]} 45...
Kc4 {[%clk 0:00:09.8]} 46. Ke3 {[%clk 0:00:12.4]} 46... Kd5 {[%clk 0:00:09.5]}
47. Ke2 {[%clk 0:00:12.9]} 47... Kc4 {[%clk 0:00:09.5]} 48. Ke3 {[%clk
0:00:05.1]} 48... Kd5 {[%clk 0:00:09.5]} 1/2-1/2